fUSD/lending_fUSD_20240322
["ID","MTS","AMOUNT","RATE_DAILY","PERIOD"]
[320056336,1711120240216,-677.76,0.00018,2]
[320056343,1711120240280,-145547.21342212,0.00018,2]
[320056350,1711120240347,-322.69074248,0.00018,2]
[320056352,1711120240360,-1155362.28697681,0.00018,2]
[320056354,1711120240370,-125750.9155373,0.00018,2]
[320056357,1711120240380,-155.35833481,0.00018088,2]
[320056359,1711120240390,-155.35833481,0.00018275,2]
[320056361,1711120240400,-155.35833481,0.00018463,2]
[320056363,1711120240409,-160.06,0.00018569,2]
[320056365,1711120240419,-312.0,0.00018636,2]
[320056367,1711120240429,-155.35833481,0.0001865,2]
[320056369,1711120240438,-228.79066592,0.0001865,2]
[320056371,1711120240447,-190.01,0.00018714,2]
[320056373,1711120240456,-250.0,0.00018756,2]
[320056375,1711120240466,-1500.0,0.00018813,4]
[320056377,1711120240480,-422.38,0.00018817,2]
[320056379,1711120240490,-184.45,0.0001883,2]
[320056381,1711120240499,-155.35833481,0.00018838,2]
[320056383,1711120240509,-5484.90388427,0.00018929,2]
[320056385,1711120240519,-397.35,0.00018978,2]
[320056387,1711120240528,-155.35833481,0.00019025,2]
[320056389,1711120240537,-150.0,0.00019053,2]
[320056391,1711120240547,-297.78,0.00019174,2]
[320056393,1711120240556,-155.35833481,0.00019213,2]
[320056395,1711120240566,-1260.69423279,0.00019242,2]
[320056397,1711120240575,-210.11570546,0.00019242,2]
[320056399,1711120240585,-167.0,0.00019263,2]
[320056401,1711120240594,-155.35833481,0.000194,2]
[320056403,1711120240603,-228.79066592,0.000194,2]
[320056405,1711120240612,-688.0,0.0001954,2]
[320056407,1711120240622,-155.35833481,0.00019588,2]
[320056409,1711120240632,-155.35833481,0.00019775,2]
[320056411,1711120240642,-3139.0,0.000199,2]
[320056413,1711120240651,-5484.90388427,0.00019957,2]
[320056415,1711120240661,-155.35833481,0.00019963,2]
[320056417,1711120240671,-5000.0,0.0002,2]
[320056420,1711120240682,-590.61224363,0.0002,2]
[320056422,1711120240692,-155.35833481,0.0002015,2]
[320056424,1711120240701,-228.79066592,0.0002015,2]
[320056426,1711120240711,-155.35833481,0.00020338,2]
[320056429,1711120240725,-155.35833481,0.00020525,2]
[320056432,1711120240735,-1260.69423279,0.00020585,2]
[320056436,1711120240745,-210.11570546,0.00020585,2]
[320056439,1711120240755,-155.35833481,0.00020713,2]
[320056442,1711120240764,-18279.41099267,0.0002079,2]
[320056445,1711120240774,-18279.41099265,0.0002079,2]
[320056448,1711120240784,-18279.41099265,0.0002079,2]
[320056451,1711120240794,-3290.92051602,0.0002079,2]
[320056454,1711120240803,-3290.92051596,0.0002079,2]
[320056457,1711120240813,-3290.92051596,0.0002079,2]
[320056460,1711120240822,-300.0,0.000209,2]
[320056463,1711120240832,-5100.0,0.000209,7]
[320056466,1711120240841,-155.35833481,0.000209,2]
[320056470,1711120240851,-6323.85473866,0.000209,2]
[320056473,1711120240860,-228.79066592,0.000209,2]
[320056476,1711120240870,-222.79926674,0.000209,2]
[320056479,1711120240879,-312.0,0.00020966,2]
[320056481,1711120240888,-5484.90388427,0.00020986,2]
[320056483,1711120240898,-1000.0,0.00020997,2]
[320056485,1711120240907,-1698.13422042,0.00020998,2]
[320056487,1711120240916,-550.0,0.00021,3]
[320056489,1711120240926,-1246367.11193131,0.00021,2]
[320056492,1711120240940,-1360.09076211,0.00021,2]
[320056494,1711120240952,-105681.75203158,0.00021,2]
[320056496,1711120240965,-1805.3090894,0.00021,2]
[320056503,1711120241041,-658.58910987,0.00021,2]
[320056505,1711120241053,-552.67629212,0.00021,2]
[320056508,1711120241067,-812.55445059,0.00021,2]
[320056510,1711120241080,-485.76095371,0.00021,2]
[320056512,1711120241092,-367.35735918,0.00021,2]
[320056515,1711120241104,-344.391636,0.00021,2]
[320056517,1711120241116,-1736.68916842,0.00021,2]
[320056519,1711120241129,-3472.21702214,0.00021,2]
[320056522,1711120241142,-764.94258621,0.00021,2]
[320056524,1711120241155,-1159.52817684,0.00021,2]
[320056535,1711120241255,-804.29,0.00021,2]
[320056538,1711120241267,-1633.5457302,0.00021,2]
[320056597,1711120241809,-17147.1202277,0.00021,2]
[320056599,1711120241824,-1214.79818361,0.00021,2]
[320056602,1711120241836,-63913.78541095,0.00021,2]
[320056604,1711120241848,-36365.30000002,0.00021,2]
[320056735,1711120243117,-207.01007355,0.000209,3]
[320056737,1711120243127,-1458.78306831,0.00021,2]
[320056740,1711120243142,-2513.5072,0.00021,2]
[320056746,1711120243195,-6503.3669986,0.00021,2]
[320056754,1711120243264,-395.02566547,0.00021,2]
[320056756,1711120243276,-3656.42055643,0.00021,2]
[320056763,1711120243330,-291.21943453,0.00021,2]
[320056765,1711120243342,-319.79643839,0.00021,2]
[320056768,1711120243354,-1365.89104,0.00021,2]
[320056770,1711120243365,-6334.30857607,0.00021,2]
[320056772,1711120243376,-36473.76283473,0.00021,2]
[320056774,1711120243387,-2582.30327726,0.00021,2]
[320056777,1711120243398,-5017.70395554,0.00021,2]
[320056780,1711120243423,-110244.87012058,0.00021,2]
[320056782,1711120243433,-580.71,0.00021,2]
[320056784,1711120243442,-527.03,0.00021,2]
[320056786,1711120243451,-437.98,0.00021,2]
[320056788,1711120243461,-2000.0,0.00021096,2]
[320056790,1711120243473,-1439.48,0.00021096,2]
[320056792,1711120243482,-18279.41099265,0.00021306,2]
[320056794,1711120243491,-3290.92051596,0.00021306,2]
[320056796,1711120243501,-397.35,0.00021351,2]
[320056798,1711120243510,-297.78,0.00021438,2]
[320056800,1711120243519,-232.88,0.00021517,2]
[320056802,1711120243529,-422.38,0.00021557,2]
[320056804,1711120243538,-224.399951,0.00021644,2]
[320056806,1711120243547,-455.12722928,0.000218,2]
[320056808,1711120243556,-455.12722928,0.000218,2]
[320056811,1711120243570,-455.12722928,0.000218,2]
[320056813,1711120243579,-455.12722928,0.000218,2]
[320056815,1711120243588,-455.12722928,0.000218,2]
[320056817,1711120243598,-455.12722928,0.000218,2]
[320056819,1711120243608,-455.12722928,0.000218,2]
[320056821,1711120243618,-455.12722928,0.000218,2]
[320056822,1711120243627,-455.12722928,0.000218,2]
[320056825,1711120243636,-455.12722928,0.000218,2]
[320056827,1711120243645,-455.12722928,0.000218,2]
[320056828,1711120243654,-455.12722928,0.000218,2]
[320056831,1711120243664,-455.12722928,0.000218,2]
[320056833,1711120243674,-455.12722928,0.000218,2]
[320056835,1711120243683,-455.12722928,0.000218,2]
[320056836,1711120243692,-455.12722928,0.000218,2]
[320056838,1711120243701,-455.12722928,0.000218,2]
[320056840,1711120243710,-455.12722928,0.000218,2]
[320056843,1711120243720,-455.12722928,0.000218,2]
[320056844,1711120243733,-455.12722928,0.000218,2]
[320056846,1711120243742,-455.12722928,0.000218,2]
[320056848,1711120243752,-455.12722928,0.000218,2]
[320056850,1711120243761,-455.12722928,0.000218,2]
[320056852,1711120243771,-455.12722928,0.000218,2]
[320056855,1711120243781,-455.12722928,0.000218,2]
[320056857,1711120243790,-455.12722928,0.000218,2]
[320056858,1711120243799,-455.12722928,0.000218,2]
[320056861,1711120243809,-455.12722928,0.000218,2]
[320056863,1711120243819,-455.12722928,0.000218,2]
[320056865,1711120243829,-455.12722928,0.000218,2]
[320056866,1711120243838,-455.12722928,0.000218,2]
[320056869,1711120243849,-455.12722928,0.000218,2]
[320056871,1711120243858,-455.12722928,0.000218,2]
[320056873,1711120243868,-455.12722928,0.000218,2]
[320056874,1711120243877,-455.12722928,0.000218,2]
[320056877,1711120243888,-455.12722928,0.000218,2]
[320056879,1711120243897,-455.12722928,0.000218,2]
[320056881,1711120243907,-455.12722928,0.000218,2]
[320056883,1711120243917,-455.12722928,0.000218,2]
[320056885,1711120243926,-455.12722928,0.000218,2]
[320056887,1711120243936,-455.12722928,0.000218,2]
[320056889,1711120243946,-455.12722928,0.000218,2]
[320056891,1711120243955,-455.12722928,0.000218,2]
[320056893,1711120243964,-455.12722928,0.000218,2]
[320056895,1711120243981,-455.12722928,0.000218,2]
[320056897,1711120243993,-455.12722928,0.000218,2]
[320056899,1711120244003,-455.12722928,0.000218,2]
[320056901,1711120244013,-455.12722928,0.000218,2]
[320056903,1711120244024,-455.12722928,0.000218,2]
[320056905,1711120244036,-455.12722928,0.000218,2]
[320056906,1711120244046,-455.12722928,0.000218,2]
[320056909,1711120244058,-455.12722928,0.000218,2]
[320056911,1711120244068,-455.12722928,0.000218,2]
[320056913,1711120244079,-455.12722928,0.000218,2]
[320056915,1711120244088,-455.12722928,0.000218,2]
[320056917,1711120244098,-455.12722928,0.000218,2]
[320056919,1711120244109,-455.12722928,0.000218,2]
[320056920,1711120244119,-455.12722928,0.000218,2]
[320056923,1711120244130,-455.12722928,0.000218,2]
[320056924,1711120244139,-455.12722928,0.000218,2]
[320056927,1711120244150,-455.12722928,0.000218,2]
[320056929,1711120244160,-455.12722928,0.000218,2]
[320056931,1711120244171,-333.801,0.0002187,2]
[320056932,1711120244182,-4758.8517,0.0002187,2]
[320056934,1711120244192,-889.0,0.00021918,10]
[320056936,1711120244202,-250.0,0.00021918,2]
[320056938,1711120244212,-1260.69423279,0.00021927,2]
[320056940,1711120244226,-210.11570546,0.00021927,2]
[320056942,1711120244236,-688.0,0.00021982,2]
[320056945,1711120244246,-1200.0,0.00022,23]
[320056947,1711120244260,-780.27085357,0.00022,2]
[320056949,1711120244270,-1001.41551265,0.00022,2]
[320056951,1711120244280,-5484.90388427,0.00022015,2]
[320056953,1711120244290,-1379.0,0.0002222,2]
[320056955,1711120244299,-960.0,0.0002222,2]
[320056957,1711120244310,-2563.0,0.0002222,2]
[320056959,1711120244320,-457.0,0.0002222,2]
[320056961,1711120244330,-1226.0,0.0002222,2]
[320056963,1711120244340,-536.0,0.0002222,2]
[320056966,1711120244350,-1251.0,0.0002222,2]
[320056968,1711120244359,-1265.0,0.0002222,2]
[320056970,1711120244369,-2933.0,0.0002222,2]
[320056972,1711120244378,-2420.0,0.0002222,2]
[320056974,1711120244387,-1460.0,0.0002222,2]
[320056976,1711120244395,-1624.0,0.0002222,2]
[320056977,1711120244404,-39559.75,0.0002222,2]
[320056980,1711120244414,-4765.0,0.0002222,2]
[320056982,1711120244424,-5674.0,0.0002222,2]
[320056984,1711120244433,-2447.0,0.0002222,2]
[320056986,1711120244442,-1045.0,0.0002222,2]
[320056987,1711120244452,-1294.0,0.000224,2]
[320056989,1711120244461,-18279.41099265,0.00022442,2]
[320056991,1711120244475,-3290.92051596,0.00022442,2]
[320056994,1711120244485,-1000.0,0.00022466,2]
[320056996,1711120244495,-224.399951,0.00022466,2]
[320056998,1711120244504,-8217.65,0.00022721,2]
[320057000,1711120244514,-6400.0,0.000229,8]
[320057002,1711120244524,-375.81,0.00022986,2]
[320057004,1711120244534,-517.17,0.00022996,2]
[320057006,1711120244543,-150.0,0.00022996,2]
[320057008,1711120244553,-415.27,0.00022996,2]
[320057010,1711120244562,-150.66,0.00022996,2]
[320057012,1711120244572,-151.26,0.00022996,2]
[320057014,1711120244581,-150.0,0.00022996,2]
[320057016,1711120244590,-150.0,0.00022996,2]
[320057018,1711120244600,-347.09,0.00022996,2]
[320057020,1711120244609,-161.22,0.00022996,2]
[320057022,1711120244618,-517.17,0.00022996,2]
[320057024,1711120244628,-413.82,0.00022996,2]
[320057026,1711120244637,-150.0,0.00022996,2]
[320057028,1711120244646,-161.22,0.00022996,2]
[320057030,1711120244656,-347.09,0.00022996,2]
[320057032,1711120244666,-415.27,0.00022996,2]
[320057034,1711120244676,-150.0,0.00022996,2]
[320057036,1711120244690,-161.22,0.00022996,2]
[320057038,1711120244700,-415.27,0.00022996,2]
[320057040,1711120244710,-347.09,0.00022996,2]
[320057042,1711120244720,-150.0,0.00022996,2]
[320057045,1711120244734,-150.0,0.00022996,2]
[320057047,1711120244743,-517.17,0.00022996,2]
[320057049,1711120244753,-415.27,0.00022996,2]
[320057051,1711120244763,-517.17,0.00022996,2]
[320057053,1711120244773,-150.0,0.00022996,2]
[320057055,1711120244783,-160.98,0.00022996,2]
[320057057,1711120244793,-150.0,0.00022996,2]
[320057059,1711120244803,-347.09,0.00022996,2]
[320057061,1711120244813,-415.27,0.00022996,2]
[320057063,1711120244822,-150.0,0.00022996,2]
[320057065,1711120244833,-517.17,0.00022996,2]
[320057067,1711120244843,-347.09,0.00022996,2]
[320057069,1711120244853,-415.27,0.00022996,2]
[320057071,1711120244864,-347.09,0.00022996,2]
[320057073,1711120244874,-150.0,0.00022996,2]
[320057075,1711120244885,-415.27,0.00022996,2]
[320057077,1711120244895,-150.0,0.00022996,2]
[320057079,1711120244906,-347.09,0.00022996,2]
[320057081,1711120244917,-415.27,0.00022996,2]
[320057083,1711120244927,-347.09,0.00022996,2]
[320057085,1711120244939,-415.27,0.00022996,2]
[320057087,1711120244950,-347.09,0.00022996,2]
[320057090,1711120244961,-600.0,0.00023,3]
[320057092,1711120244975,-7042.34174071,0.00023,30]
[320057094,1711120245002,-365.0,0.00023,30]
[320057096,1711120245027,-680.73902884,0.00023,30]
[320057342,1711120246811,-455.12722928,0.000218,2]
[320057343,1711120246821,-455.12722928,0.000218,2]
[320057344,1711120246831,-455.12722928,0.000218,2]
[320057345,1711120246841,-455.12722928,0.000218,2]
[320057346,1711120246852,-455.12722928,0.000218,2]
[320057347,1711120246862,-455.12722928,0.000218,2]
[320057348,1711120246872,-455.12722928,0.000218,2]
[320057349,1711120246882,-455.12722928,0.000218,2]
[320057350,1711120246892,-455.12722928,0.000218,2]
[320057351,1711120246902,-455.12722928,0.000218,2]
[320057352,1711120246912,-455.12722928,0.000218,2]
[320057353,1711120246922,-455.12722928,0.000218,2]
[320057354,1711120246932,-455.12722928,0.000218,2]
[320057355,1711120246942,-455.12722928,0.000218,2]
[320057356,1711120246951,-415.27,0.00022996,2]
[320057357,1711120246961,-352.25,0.00022996,2]
[320057358,1711120246971,-1911.91923045,0.00023,30]
[320057359,1711120246992,-345.89906428,0.00023,7]
[320057361,1711120247122,-737.42732395,0.00023,7]
[320057362,1711120247159,-455.12722928,0.000218,2]
[320057363,1711120247172,-5824.79481991,0.00023,7]
[320057367,1711120247305,-3091.87879186,0.00023,7]
[320057369,1711120247316,-155.14700149,0.00023,2]
[320057371,1711120247326,-389.70973746,0.00023,24]
[320057376,1711120247430,-305.15077444,0.00023,24]
[320057385,1711120247650,-0.30534217,0.00023,24]
[320057388,1711120247663,-504.83414593,0.00023,24]
[320057390,1711120247673,-159.33715228,0.00023006,2]
[320057392,1711120247682,-5484.90388427,0.00023043,2]
[320057394,1711120247691,-157.24389254,0.00023048,2]
[320057396,1711120247701,-159.47637271,0.00023052,2]
[320057398,1711120247710,-347.09,0.00023078,2]
[320057400,1711120247719,-150.0,0.00023078,2]
[320057401,1711120247731,-415.27,0.00023078,2]
[320057402,1711120247740,-910.56,0.00023078,2]
[320057403,1711120247750,-168.68631045,0.00023084,2]
[320057404,1711120247759,-310.91064005,0.00023085,2]
[320057405,1711120247769,-766.30076639,0.00023139,2]
[320057406,1711120247778,-152.78766685,0.000232,2]
[320057407,1711120247788,-206.81550166,0.00023238,2]
[320057408,1711120247797,-310.91064005,0.00023253,2]
[320057409,1711120247807,-165.18915039,0.00023261,2]
[320057410,1711120247816,-165.76136783,0.00023264,2]
[320057411,1711120247826,-1260.69423279,0.0002327,2]
[320057412,1711120247835,-210.11570546,0.0002327,2]
[320057413,1711120247845,-154.76784254,0.00023286,2]
[320057414,1711120247854,-224.399951,0.00023288,2]
[320057415,1711120247863,-312.0,0.00023295,2]
[320057416,1711120247874,-687.68642401,0.00023312,2]
[320057418,1711120249902,-112.31357599,0.00023312,2]
[320057419,1711120249911,-200.0,0.00023312,2]
[320057420,1711120249921,-200.0,0.00023312,2]
[320057421,1711120249931,-37.98862373,0.00023364,2]
[320057422,1711120249942,-380.14987476,0.00023364,2]
[320057423,1711120249955,-190.01,0.00023393,2]
[320057424,1711120249966,-628.6123187,0.00023395,2]
[320057425,1711120249978,-154.29515265,0.00023415,2]
[320057426,1711120249996,-1846.93265389,0.00023499,2]
[320057427,1711120250009,-1738.56452245,0.00023499,2]
[320057428,1711120250019,-342.68365,0.00023499,2]
[320057429,1711120250032,-150.01,0.00023499,2]
[320057430,1711120250042,-3101.21432545,0.00023499,2]
[320057431,1711120250055,-39491.57797266,0.00023499,2]
[320057434,1711120297629,10000.0,0.00025941,120]
[320057436,1711121133105,-154.36252679,0.0001779,2]
[320057437,1711121133125,-171.80921055,0.00017888,2]
[320057438,1711121247042,2000.0,0.000164,30]
[320057439,1711121248546,2000.0,0.000192,30]
[320057440,1711121249733,2000.0,0.000219,30]
[320057441,1711121265117,-445.17249158,0.00017799,2]
[320057442,1711121265139,-2784.78580921,0.00017799,2]
[320057443,1711121265161,-59006.3002,0.000178,2]
[320057444,1711121265186,-768.11,0.0001789,3]
[320057445,1711121265216,-150.0,0.00017899,2]
[320057446,1711121265240,-95634.533,0.000179,2]
[320057447,1711121265260,-62443.09849921,0.000179,2]
[320057448,1711121317950,238.41,0.00024747,120]
[320057450,1711121348112,-272.56787899,0.00017898,2]
[320057451,1711121348132,-6718.24182101,0.00017899,2]
[320057454,1711121368110,-1856.52387281,0.00017898,2]
[320057455,1711121368129,-278.91404774,0.00017898,2]
[320057456,1711121368149,-399.31430668,0.00017899,2]
[320057457,1711121368168,-73061.71159782,0.000179,2]
[320057458,1711121368187,-217.4050215,0.00018,2]
[320057459,1711121368207,-271.54,0.00018093,2]
[320057498,1711121432999,-150.0,0.00019761,2]
[320057499,1711121433009,-149.99,0.0001978,2]
[320057500,1711121433021,-271.94112285,0.0001978,2]
[320057501,1711121433030,-1627.75,0.00019795,2]
[320057502,1711121433039,-238.41,0.00019797,2]
[320057503,1711121433049,-250.0,0.00019967,2]
[320057504,1711121433058,-250.0,0.00019977,2]
[320057505,1711121433068,-159.98,0.00019986,2]
[320057506,1711121433078,-150.0,0.00019999,2]
[320057507,1711121433087,-155.0,0.0002,2]
[320057508,1711121433097,-999.99,0.0002,2]
[320057509,1711121433106,-695.9,0.0002,2]
[320057510,1711121433117,-1068.9,0.0002,2]
[320057511,1711121433126,-20522.82,0.0002,2]
[320057512,1711121433140,-1433.51008077,0.00020355,2]
[320057514,1711121433152,-590.61224363,0.00020356,2]
[320057516,1711121433162,-271.54,0.00020357,2]
[320057518,1711121433173,-1000.0,0.00020547,2]
[320057520,1711121433183,-1600.0,0.000207,7]
[320057522,1711121433195,-209.14143059,0.00020789,2]
[320057524,1711121433206,-3330.30831278,0.0002079,2]
[320057526,1711121433218,-3330.30831273,0.0002079,2]
[320057528,1711121433228,-3330.30831273,0.0002079,2]
[320057530,1711121433239,-746.0673848,0.00020799,2]
[320057532,1711121433250,-3200.0,0.000208,7]
[320057535,1711121433261,-336.37140425,0.000208,2]
[320057538,1711121433272,-499.99,0.0002089,2]
[320057541,1711121433283,-1547.10322734,0.00020897,2]
[320057543,1711121433293,-102649.55495491,0.00020898,2]
[320057545,1711121433304,-500.0,0.00020899,2]
[320057547,1711121433315,-500.0,0.00020899,2]
[320057549,1711121433325,-500.0,0.00020899,2]
[320057551,1711121433335,-500.0,0.00020899,2]
[320057553,1711121433346,-500.0,0.00020899,2]
[320057555,1711121433355,-500.0,0.00020899,2]
[320057557,1711121433365,-360.70294104,0.00020899,2]
[320057559,1711121433375,-500.0,0.00020899,2]
[320057561,1711121433394,-500.0,0.00020899,2]
[320057563,1711121433404,-500.0,0.00020899,2]
[320057565,1711121433414,-500.0,0.00020899,2]
[320057567,1711121433424,-500.0,0.00020899,2]
[320057569,1711121433434,-500.0,0.00020899,2]
[320057571,1711121433444,-500.0,0.00020899,2]
[320057573,1711121433453,-500.0,0.00020899,2]
[320057575,1711121433464,-500.0,0.00020899,2]
[320057577,1711121433474,-500.0,0.00020899,2]
[320057579,1711121433483,-500.0,0.00020899,2]
[320057581,1711121433492,-500.0,0.00020899,2]
[320057583,1711121433502,-500.0,0.00020899,2]
[320057585,1711121433511,-500.0,0.00020899,2]
[320057587,1711121433521,-500.0,0.00020899,2]
[320057589,1711121433530,-500.0,0.00020899,2]
[320057590,1711121433539,-500.0,0.00020899,2]
[320057591,1711121433548,-500.0,0.00020899,2]
[320057592,1711121433558,-500.0,0.00020899,2]
[320057593,1711121433567,-500.0,0.00020899,2]
[320057594,1711121433576,-500.0,0.00020899,2]
[320057595,1711121433585,-500.0,0.00020899,2]
[320057596,1711121433595,-500.0,0.00020899,2]
[320057597,1711121433604,-500.0,0.00020899,2]
[320057598,1711121433614,-500.0,0.00020899,2]
[320057599,1711121433623,-500.0,0.00020899,2]
[320057600,1711121433631,-500.0,0.00020899,2]
[320057601,1711121433647,-500.0,0.00020899,2]
[320057602,1711121433656,-500.0,0.00020899,2]
[320057603,1711121433666,-500.0,0.00020899,2]
[320057604,1711121433675,-500.0,0.00020899,2]
[320057605,1711121433684,-500.0,0.00020899,2]
[320057606,1711121433693,-382.79518828,0.00020899,2]
[320057607,1711121433702,-500.0,0.00020899,2]
[320057608,1711121433712,-272.16123747,0.00020899,2]
[320057609,1711121433721,-500.0,0.00020899,2]
[320057610,1711121433729,-403.95164907,0.00020899,2]
[320057611,1711121433739,-500.0,0.00020899,2]
[320057612,1711121433748,-500.0,0.00020899,2]
[320057613,1711121433757,-500.0,0.00020899,2]
[320057614,1711121433766,-500.0,0.00020899,2]
[320057615,1711121433775,-500.0,0.00020899,2]
[320057616,1711121433784,-500.0,0.00020899,2]
[320057617,1711121433794,-500.0,0.00020899,2]
[320057618,1711121433803,-625.36776457,0.00020899,2]
[320057619,1711121433813,-500.0,0.00020899,2]
[320057620,1711121433822,-500.0,0.00020899,2]
[320057621,1711121433831,-500.0,0.00020899,2]
[320057622,1711121433841,-500.0,0.00020899,2]
[320057623,1711121433850,-500.0,0.00020899,2]
[320057624,1711121433859,-500.0,0.00020899,2]
[320057625,1711121433868,-500.0,0.00020899,2]
[320057626,1711121433877,-500.0,0.00020899,2]
[320057627,1711121433890,-500.0,0.00020899,2]
[320057628,1711121433899,-500.0,0.00020899,2]
[320057629,1711121433909,-500.0,0.00020899,2]
[320057630,1711121433918,-500.0,0.00020899,2]
[320057631,1711121433927,-500.0,0.00020899,2]
[320057632,1711121433937,-500.0,0.00020899,2]
[320057633,1711121433947,-500.0,0.00020899,2]
[320057634,1711121433957,-500.0,0.00020899,2]
[320057635,1711121433966,-500.0,0.00020899,2]
[320057636,1711121433976,-500.0,0.00020899,2]
[320057637,1711121433985,-500.0,0.00020899,2]
[320057638,1711121433995,-500.0,0.00020899,2]
[320057639,1711121434005,-432944.08438356,0.000209,2]
[320057640,1711121434040,-318.07481198,0.000209,2]
[320057641,1711121434052,-364.83998842,0.000209,2]
[320057642,1711121434190,-4062.2272576,0.000209,2]
[320057643,1711121434203,-4652.07467238,0.000209,2]
[320057644,1711121434216,-2776.20877599,0.000209,2]
[320057645,1711121434284,-677.45377569,0.000209,2]
[320057646,1711121434295,-389.22410135,0.000209,2]
[320057647,1711121434307,-4287.34331445,0.000209,2]
[320057648,1711121434319,-3678.74070759,0.000209,2]
[320057668,1711121438463,-709.0,0.000201,2]
[320057669,1711121438474,-163.65,0.0002089,2]
[320057670,1711121438483,-163.65,0.0002089,2]
[320057671,1711121438493,-10185.68166175,0.000209,2]
[320057672,1711121438506,-1289.66076782,0.000209,2]
[320057693,1711121439069,-51.18313273,0.000209,2]
[320057694,1711121439737,-2701.23999999,0.000209,2]
[320057695,1711121439760,-16964.38650768,0.000209,2]
[320057696,1711121439786,-2667.51524102,0.000209,2]
[320057697,1711121439796,-7500.0,0.000209,2]
[320057698,1711121439806,-154.36252679,0.000209,2]
[320057699,1711121439816,-4800.0,0.000209,7]
[320057700,1711121439826,-2947.24240338,0.000209,2]
[320057701,1711121439835,-163.65,0.0002099,2]
[320057702,1711121439845,-163.65,0.0002099,2]
[320057703,1711121439855,-163.65,0.0002099,2]
[320057704,1711121439865,-163.65,0.0002099,2]
[320057705,1711121439874,-163.65,0.0002099,2]
[320057706,1711121439883,-163.65,0.0002099,2]
[320057707,1711121439898,-4922.708862,0.00020998,2]
[320057708,1711121439907,-441.23738847,0.00020999,2]
[320057709,1711121439916,-500.0,0.00020999,2]
[320057710,1711121439925,-500.0,0.00020999,2]
[320057711,1711121439934,-500.0,0.00020999,2]
[320057712,1711121439943,-358.83895912,0.00020999,2]
[320057713,1711121439952,-210.75080489,0.00020999,2]
[320057714,1711121439961,-500.0,0.00020999,2]
[320057715,1711121439969,-500.0,0.00020999,2]
[320057716,1711121439979,-500.0,0.00020999,2]
[320057717,1711121439988,-500.0,0.00020999,2]
[320057718,1711121439997,-450.0,0.00020999,2]
[320057719,1711121440006,-500.0,0.00020999,2]
[320057720,1711121440017,-624.70063232,0.00020999,2]
[320057721,1711121440027,-134436.95751801,0.00021,2]
[320057722,1711121440040,-108404.64854715,0.00021,2]
[320057723,1711121440052,-18198.19702795,0.00021,2]
[320057724,1711121440084,-743.46888367,0.00021,2]
[320057725,1711121440123,-85324.42544269,0.00021,2]
[320057726,1711121440214,-36.24130412,0.00021,2]
[320057728,1711121441107,-5014.8241424,0.00021,2]
[320057729,1711121441322,-303985.87116494,0.00021,2]
[320057730,1711121441334,-602.4625476,0.00021,2]
[320057731,1711121441370,-2343.95526717,0.00021,2]
[320057732,1711121441386,-320.60204471,0.00021,2]
[320057733,1711121442665,-3583.53179697,0.00020899,2]
[320057734,1711121442677,-500.62899638,0.00020899,2]
[320057750,1711121443336,-7207.42010454,0.00020899,2]
[320057751,1711121443346,-3359.5909251,0.00020999,2]
[320057752,1711121443356,-198.99790327,0.00020999,2]
[320057753,1711121443367,-210472.98072109,0.00021,2]
[320057754,1711121444113,-650.0,0.00021,2]
[320057755,1711121444218,-1526.84835493,0.00021,2]
[320057756,1711121444231,-688.31663225,0.00021,2]